Workbook

Sheet 총괄표
B2: 회사명 : A사(00%) + B사(00%) + C사(00%)
B3: 자기평가서 | I3: 수정평가
B4: 구 분 | E4: 산출근거 | F4: 배점 | G4: 평가점수 | I4: 산출근거 | J4: 배점 | K4: 평가점수
B5: 총 계 | F5: 100 | G5: 96.81 | J5: 100 | K5: =K6+K54 -> 
B6: 1. 참여자 능력평가 | C6: 계 | F6: 68 | G6: 67.31 | J6: 68 | K6: =SUM(K7,K8,K13,K18,K19,K24,K29,K30,K35,K40,K41,K46,K51,K52,#REF!) -> 
C7: (1) 자격 및 등급 | D7: 총 괄 | E7: 환경영향평가사 | F7: 3 | G7: 2.85 | J7: 3
D8: 분야별책임 | F8: 6 | G8: 6 | J8: 6 | K8: =AVERAGE(K9:K12) -> 
D9: 대기관리 | E9: 대기관리기술사 | G9: 6
D10: 수질관리 | E10: 수질관리기술사 | G10: 6
D11: 자연환경 | E11: 자연환경기술사 | G11: 6
D12: 소음진동/폐기물/토양 | G12: 6
D13: 분야별평가 | F13: 5 | G13: 5 | J13: 5 | K13: =AVERAGE(K14:K17) -> 
D14: 대기관리 | E14: 특급기술자 | G14: 5
D15: 수질관리 | E15: 특급기술자 | G15: 5
D16: 자연환경 | E16: 특급기술자 | G16: 5
D17: 소음진동/폐기물/토양 | G17: 5
C18: (2) 경 력 | D18: 총 괄 | E18: 22.6년 | F18: 4 | G18: 4 | I18: 22.6년 | J18: 4
D19: 분야별책임 | F19: 7 | G19: 6.77 | J19: 7 | K19: =AVERAGE(K20:K23) ->  | M19: =AVERAGE(K20:K23) -> 
D20: 대기관리 | E20: 20.9년 | I20: 20.9년
D21: 수질관리 | I21: 31.6년
D22: 자연환경 | I22: 20.0년
D23: 소음진동/폐기물/토양 | I23: 18.5년
D24: 분야별평가 | F24: 6 | G24: 6 | J24: 6 | K24: =AVERAGE(K25:K28) -> 
D25: 대기관리 | E25: 13.2년 | G25: 6 | I25: 13.2년
D26: 수질관리 | G26: 6 | I26: 14.1년
D27: 자연환경 | G27: 6 | I27: 13.4년
D28: 소음진동/폐기물/토양 | G28: 6 | I28: 11.4년
C29: (3) 실 적 | D29: 총 괄 | E29: 32.8건 | F29: 4 | G29: 4 | I29: 34.8건 | J29: 4
D30: 분야별책임 | F30: 7 | G30: 7 | J30: 7 | K30: =AVERAGE(K31:K34) ->  | M30: =AVERAGE(K31:K34) -> 
D31: 대기관리 | E31: 33.8건 | G31: 7 | I31: 35.4건
D32: 수질관리 | G32: 7 | I32: 35.4건
D33: 자연환경 | G33: 7 | I33: 25.4건
D34: 소음진동/폐기물/토양 | G34: 7 | I34: 26.8건
D35: 분야별평가 | F35: 6 | G35: 6 | J35: 6 | K35: =AVERAGE(K36:K39) -> 
D36: 대기관리 | E36: 24.16건 | G36: 6 | I36: 32.8건
D37: 수질관리 | G37: 6 | I37: 29.8건
D38: 자연환경 | G38: 6 | I38: 27.6건
D39: 소음진동/폐기물/토양 | G39: 6 | I39: 14.6건
C40: (4) 업무여유도 | D40: 총 괄 | E40: 70.29백만원 | F40: 4 | G40: 4 | I40: 80.21백만원 | J40: 4
D41: 분야별책임 | F41: 7 | G41: 7 | J41: 7 | K41: =AVERAGE(K42:K45) ->  | M41: =AVERAGE(K42:K45) -> 
D42: 대기관리 | E42: 21.18백만원 | G42: 7 | I42: 25.13백만원
D43: 수질관리 | G43: 7 | I43: 70.99백만원
D44: 자연환경 | G44: 7 | I44: 22.52백만원
D45: 소음진동/폐기물/토양 | G45: 7 | I45: 22.52백만원
D46: 분야별평가 | F46: 6 | G46: 6 | J46: 6 | K46: =AVERAGE(K47:K50) -> 
D47: 대기관리 | E47: 2.92백만원 | G47: 6 | I47: 5.68백만원
D48: 수질관리 | E48: 18.82백만원 | G48: 6 | I48: 22.52백만원
D49: 자연환경 | E49: 18.82백만원 | G49: 6 | I49: 22.52백만원
D50: 소음진동/폐기물/토양 | E50: 46.03백만원 | G50: 6 | I50: 54.38백만원
C51: (5) 교육훈련 | E51: 전원 2주 교육이수 | F51: 2 | G51: 1 | I51: 전원 2주 교육이수 | J51: 1 | M51: =1-1/13*0.1 -> 0.9923076923
C52: (6) 과업이해도 | E52: 전단계용역 참여 | F52: 1 | G52: 1 | I52: 전단계용역 참여 | J52: 1 | K52: 1
C53: (7) 이적계수 | G53: =이적계수!F11 -> -0.6686111111
B54: 2. 업체 능력평가 | C54: 계 | F54: 32 | G54: 29.5 | J54: 32 | K54: =SUM(K55:K79) -> 29.5
C55: (1) 수행실적 | D55: (가) 건 수 | E55: A사 : 22.55건 | F55: 7 | G55: 7 | I55: A사 : 22.55건 | J55: 7 | K55: 7
E56: B사:
E57: C사:
D58: (나) 금 액 | E58: A사 : 10,077백만원 | F58: 7 | G58: 7 | I58: A사 : 10,077백만원 | J58: 7 | K58: 7
E59: B사:
E60: C사:
C61: (2) 신 용 도 | D61: (가) 부실업체 등 | E61: 감점없음 | F61: 6 | G61: 5 | I61: 감점없음 | J61: 5 | K61: 5
D62: (나) 재정상태 | E62: A사 : A0 | F62: 3 | G62: 3 | I62: A사 : A0 | J62: 3 | K62: 3
E63: B사:
E64: C사:
C65: (3) 기술투자실적 | D65: (가) 개발실적 | E65: A사 : 4.34점 | F65: 2 | G65: 2 | I65: A사 : 4.34점 | J65: 2 | K65: 2
E66: B사:
E67: C사:
D68: (나) 투자실적 | E68: A사 :3.21% | F68: 2 | G68: 2 | I68: A사 :3.21% | J68: 2 | K68: 2
E69: B사:
E70: C사:
D71: (다) 활용실적 | E71: A사 : 7.86점 | F71: 2 | G71: 2 | I71: A사 : 7.86점 | J71: 2 | K71: 2
E72: B사:
E73: C사:
C74: (4)공동도급 | I74: 만점 부여 | J74: 1 | K74: 1
E75: 제1종-2종 | F75: 1 | G75: 0.5 | I75: 1-2종 0.5 | J75: 1 | K75: 0.5
E76: 소기업 | I76: 소기업 0.5
C77: (5) 업체능력평가 | E77: 상대평가 | F77: 2 | G77: (미기재) | I77: 상대평가 | J77: 2 | K77: 0
C78: (6) 하도급준수
C79: (7) 청년고용 | E79: 가점 0.1~0.3 | G79: - | K79: -

Sheet 경력
A1: - 기술자 경력
A3: 연 번 | B3: 사업명 | C3: 구분 (평가 구분) | D3: 참여기간 | G3: 소속 회사 | H3: 발주처 | I3: 담당 업무
D4: 착수일 | E4: 준공일 | F4: 참여 일수
A5: 평가
A6: 1 | B6: 00 환경영향평가 | C6: 평가 | D6: 1999-03-01 | E6: 1999-08-31 | F6: =E6-D6+1 -> 184 | H6: 남양주시 | I6: 평가
A7: 2
A8: 3
A9: 4
A10: 소계 | F10: =SUM(F6:F9) -> 184
A11: 평가 환산일수(A) | C11: X 1 | F11: =SUM(F10)*1 -> 184 | H11: 0
A13: 기타
A14: 1 | B14: 00 실시설계 | C14: 기타 | D14: 2001-03-01 | E14: 2002-08-31 | F14: =E14-D14+1 -> 549 | H14: 남양주시 | I14: 조사
A18: 소계 | F18: =SUM(F14:F17) -> 549
A19: 기타 환산일수(B) | C19: X0.6 | F19: =SUM(F18)*0.6 -> 329.4
A20: 전체 경력 | F20: =ROUND((SUM(F11+F19)/365),1) -> 1.4
A21: * 해당경력은 경력증명서에 형광펜으로 표시
A22: * 참여기술자의 경력의 참여기간에는 용역사업기간이 아닌 실제 개인별 참여기간을 기재
A23: * 사전환경성검토, 소규모, 전략 및 환경영향평가 수행경력은 각 최대 2년 까지만 환경영향평가 등 경력으로 인정 하며, 초과기간 경력은 기타 환경분야 경력으로 인정한다.
A24: * 사후환경영향조사용역의 수행 경력의 경우 별도제한을 정하지 않으나, 장기경력의 경우 발주처의 확인 요청시 별도 증빙자료를 제출하여야 한다(용역중지 기간 불인정)

Sheet 실적
A1: - 기술자 실적
A3: (참여분야 : , OOO) | I3: (단위 : 천원)
A4: 연 번 | B4: 사업명 | C4: 구분 (평가 구분) | D4: 공종 | E4: 참여기간 | H4: 용역 금액 | I4: 소속 회사 | J4: 발주처 | K4: 담당 업무
E5: 착수일 | F5: 준공일 | G5: 참여 일수
A6: (유사사업 : 평가) : 1.0
A7: 1 | B7: 00 환경영향평가 | C7: 평가 | D7: 단지 | E7: 1999-03-01 | F7: 1999-08-31 | G7: =F7-E7+1 -> 184 | H7: 0 | J7: 남양주시 | K7: 평가
A8: 2
A9: 소계 | G9: 2 | J9: 건
A10: 환산건수 | C10: X 1 | G10: =SUM(G9*1) -> 2 | J10: 건
A12: (유사사업 : 해당평가외) : 0.6
A13: 1 | B13: 00 사후환경영향조사 | C13: 해당평가외 | D13: 단지 | E13: 1999-03-01 | F13: 1999-08-31 | G13: =F13-E13+1 -> 184 | J13: 남양주시 | K13: 조사
A14: 2
A15: 소계 | G15: 2 | J15: 건
A16: 환산건수 | C16: X 0.6 | G16: =SUM(G15*0.6) -> 1.2 | J16: 건
A18: (기타사업 : 평가) : 0.6
A19: 1 | B19: 00 환경영향평가 | C19: 평가 | D19: 도로 | E19: 1999-03-01 | F19: 1999-08-31 | G19: =F19-E19+1 -> 184 | J19: 남양주시 | K19: 평가
A20: 2
A21: 소계 | G21: 2 | J21: 건
A22: 환산건수 | C22: X 0.6 | G22: =SUM(G21*0.6) -> 1.2 | J22: 건
A24: (기타사업 : 해당평가외) : 0.36
A25: 1 | B25: 00 사후환경영향조사 | C25: 해당평가외 | D25: 도로 | E25: 1999-03-01 | F25: 1999-08-31 | G25: =F25-E25+1 -> 184 | J25: 남양주시 | K25: 조사
A26: 2
A27: 소계 | G27: 2 | J27: 건
A28: 환산건수 | C28: X 0.36 | G28: =SUM(G27*0.36) -> 0.72 | J28: 건
A30: 총계 | G30: =SUM(G10+G16+G22+G28) -> 5.12 | J30: 건
A31: * 참여기술자의 실적은 과업 참여일수가 최소 90일 이상의 용역건만 인정
A32: * 사후환경영향조사 실적은 환경영향평가법 시행규칙 제19조 제1항에 따른 사후환경영향조사 대상사업의 기간 내 실적분만 인정하고 그 외의 타법령(환경 관련법령 등)에 따른 사후환경관리 및 조사 등의 유사용역 실적은 미인정
A33: * 참여기술자 실적은 발주금액의 10% 이상(9천만원) 계약건만 인정(백만원 이하 단위 절사)
A34: * 장기계속용역의 경우 최종 준공되어야 1건의 실적으로 인정한다
A35: * 사후환경영향조사용역의 경우 1차년도 이상의 준공실적(9천만원 이상)을 1건으로 평가

Sheet 업무여유도 양식
A2: (4). 업무여유도
A3: ( 참여분야 : ,OOO)
A4: (중복도 산정 기준일) | C4: 입찰공고일
A5: No. | B5: 용역명 | C5: 총사업금액 (백만원) | D5: 착수일 | E5: 준공일 | F5: 잔여 일수 | G5: 총계약 일수 | H5: 중복금액 (백만원)
A6: 1 | B6: 00 정비공사 평가 | C6: 763 | D6: 2015-10-26 | E6: 2025-10-25 | F6: =SUM(IF((E6-$C$4)>365,365,E6-$C$4)) ->  | G6: =SUM(E6-D6) -> 3652 | H6: =ROUNDUP((SUM((C6*(F6/G6)/10))),2) -> 
A7: 2
A8: 3
A9: 4
A10: 5
A11: 6
A12: 7
A13: 8
A14: 9
A15: 10
B16: 계 | H16: =SUM(H6:H15) -> 
A17: * 평가기준에 의한 대상 용역만 기재
A18: * 소수점 셋째자리에서 반올림

Sheet 유사용역실적
A1: 2. (1) 환경영향평가등 수행실적
A2: (회사명 : , 지분율 %)
K3: (백만원, 건)
A4: 연 번 | B4: 사업명 | C4: 구분 (평가 구분) | D4: 공종 | E4: 발주처 | F4: 용역기간 | I4: 준공금액 | K4: 지분율 (%) | L4: 건수
F5: 착수일 | G5: 준공일 | H5: 용역일수 | I5: 전체 | J5: 지분 금액
A6: (유사사업 : 평가) : 1.0
A7: 1 | B7: 00 환경영향평가 | C7: 평가 | D7: 단지 | E7: 남양주시 | F7: 1999-03-01 | G7: 1999-08-31 | H7: =G7-F7+1 -> 184 | I7: 2000 | J7: 1000 | K7: 50 | L7: =SUM(K7/100) -> 0.5
A8: 2 | L8: =SUM(K8/100) -> 0
A9: 소계 | J9: =SUM(J7:J8) -> 1000 | L9: =SUM(L7:L8) -> 0.5
A10: 유사실적 | C10: X 1 | J10: =SUM(J9*1) -> 1000 | L10: =SUM(L9*1) -> 0.5
A12: (유사사업 : 해당평가외) : 0.6
A13: 1 | B13: 00 사후환경영향조사 | C13: 해당평가외 | D13: 단지 | E13: 남양주시 | F13: 1999-03-01 | G13: 1999-08-31 | H13: =G13-F13+1 -> 184 | J13: 2000 | K13: 30 | L13: =SUM(K13/100) -> 0.3
A14: 2 | L14: =SUM(K14/100) -> 0
A15: 소계 | J15: =SUM(J13:J14) -> 2000 | L15: =SUM(L13:L14) -> 0.3
A16: 환산건수 | C16: X 0.6 | J16: =SUM(J15*0.6) -> 1200 | L16: =SUM(L15*1) -> 0.3
A18: (기타사업 : 평가) : 0.6
A19: 1 | B19: 00 환경영향평가 | C19: 평가 | D19: 도로 | F19: 1999-03-01 | G19: 1999-08-31 | H19: =G19-F19+1 -> 184 | J19: 700 | K19: 45 | L19: =SUM(K19/100) -> 0.45
A20: 2 | L20: =SUM(K20/100) -> 0
A21: 소계 | J21: =SUM(J19:J20) -> 700 | L21: =SUM(L19:L20) -> 0.45
A22: 환산건수 | C22: X 0.6 | J22: =SUM(J21*0.6) -> 420 | L22: =SUM(L21*1) -> 0.45
A24: (기타사업 : 해당평가외) : 0.36
A25: 1 | B25: 00 사후환경영향조사 | C25: 해당평가외 | D25: 도로 | F25: 1999-03-01 | G25: 1999-08-31 | H25: =G25-F25+1 -> 184 | J25: 500 | K25: 70 | L25: =SUM(K25/100) -> 0.7
A26: 2 | L26: =SUM(K26/100) -> 0
A27: 소계 | J27: =SUM(J25:J26) -> 500 | L27: =SUM(L25:L26) -> 0.7
A28: 환산건수 | C28: X 0.36 | J28: =SUM(J27*0.36) -> 180 | L28: =SUM(L27*0.36) -> 0.252
A30: 총계 | J30: =SUM(J10+J16+J22+J28) -> 2800 | L30: =SUM(L10+L16+L22+L28) -> 1.502
A31: *업체수행 실적은 발주금액의 10% 이상(9천만원) 준공건만 인정(백만원 이하 단위 절사)
A32: *장기계속용역의 경우 최종 준공되어야 1건의 실적으로 인정한다
A33: *사후환경영향조사용역의 경우 1차년도 이상의 준공실적(9천만원 이상)을 포함한다. (1차년도 이상 준공실적은 1건으로 평가하되, 금액은 합산 한다)

Sheet 활용실적
A2: 1. A사 | G2: 2. B사 | M2: 2. C사
A3: 지정번호 | B3: 환경외분야 | C3: 건수및금액 | D3: 등급별계수 | E3: 배점 | G3: 지정번호 | H3: 환경외분야 | I3: 건수및금액 | J3: 등급별계수 | K3: 배점 | M3: 지정번호 | N3: 환경외분야 | O3: 건수및금액 | P3: 등급별계수 | Q3: 배점
A4: 492 | B4: 0.6 | C4: 0.8 | D4: 1 | E4: =B4*C4*D4 -> 0.48 | G4: 513 | H4: 0.6 | I4: 0.6 | J4: 1 | K4: =H4*I4*J4 -> 0.36 | M4: 513 | N4: 0.6 | O4: 0.6 | P4: 1 | Q4: =N4*O4*P4 -> 0.36
A5: 510 | B5: 0.6 | C5: 0.6 | D5: 1 | E5: =B5*C5*D5 -> 0.36 | G5: 517 | H5: 0.6 | I5: 0.7 | J5: 1 | K5: =H5*I5*J5 -> 0.42 | M5: 517 | N5: 0.6 | O5: 0.7 | P5: 1 | Q5: =N5*O5*P5 -> 0.42
A6: 517 | B6: 0.6 | C6: 1 | D6: 1 | E6: 0.6 | G6: 551 | H6: 0.6 | I6: 1 | J6: 1 | K6: 0.6 | M6: 551 | N6: 0.6 | O6: 1 | P6: 1 | Q6: 0.6
A7: 536 | B7: 0.6 | C7: 0.6 | D7: 1 | E7: 0.36 | G7: 582 | H7: 0.6 | I7: 0.6 | J7: 1 | K7: 0.36 | M7: 582 | N7: 0.6 | O7: 0.6 | P7: 1 | Q7: 0.36
A8: 539 | B8: 0.6 | C8: 0.6 | D8: 1 | E8: 0.36 | G8: 592 | H8: 0.6 | I8: 0.8 | J8: 1 | K8: 0.48 | M8: 592 | N8: 0.6 | O8: 0.8 | P8: 1 | Q8: 0.48
A9: 553 | B9: 0.6 | C9: 0.8 | D9: 1 | E9: 0.48 | G9: 598 | H9: 0.6 | I9: 0.6 | J9: 1 | K9: 0.36 | M9: 598 | N9: 0.6 | O9: 0.6 | P9: 1 | Q9: 0.36
A10: 555 | B10: 0.6 | C10: 0.6 | D10: 1 | E10: 0.36 | G10: 602 | H10: 0.6 | I10: 0.6 | J10: 1 | K10: 0.36 | M10: 602 | N10: 0.6 | O10: 0.6 | P10: 1 | Q10: 0.36
A11: 556 | B11: 0.6 | C11: 1 | D11: 1 | E11: 0.6 | G11: 603 | H11: 0.6 | I11: 0.7 | J11: 1 | K11: 0.42 | M11: 603 | N11: 0.6 | O11: 0.7 | P11: 1 | Q11: 0.42
A12: 561 | B12: 0.6 | C12: 0.6 | D12: 1 | E12: 0.36
A13: 567 | B13: 0.6 | C13: 0.6 | D13: 1 | E13: 0.36
A14: 582 | B14: 0.6 | C14: 0.6 | D14: 1 | E14: 0.36
A15: 584 | B15: 0.6 | C15: 0.9 | D15: 1 | E15: 0.54
A16: 587 | B16: 0.6 | C16: 0.6 | D16: 1 | E16: 0.36
A17: 597 | B17: 0.6 | C17: 0.6 | D17: 1 | E17: 0.36
A18: 603 | B18: 0.6 | C18: 0.6 | D18: 1 | E18: 0.36
A19: 612 | B19: 0.6 | C19: 0.6 | D19: 1 | E19: 0.36
A20: 662 | B20: 0.6 | C20: 0.8 | D20: 1 | E20: 0.48
A21: 715 | B21: 0.6 | C21: 0.6 | D21: 1 | E21: 0.36
A22: 726 | B22: 0.6 | C22: 0.6 | D22: 1 | E22: 0.36
A23: 계 | E23: =SUM(E4:E22) -> 7.86 | G23: 계 | K23: =SUM(K4:K22) -> 3.36 | M23: 계 | Q23: =SUM(Q4:Q22) -> 3.36
A24: 지분율 | B24: 0.6 | E24: =E23*B24 -> 4.716 | G24: 지분율 | H24: 0.3 | K24: =H24*K23 -> 1.008 | M24: 지분율 | N24: 0.1 | Q24: =N24*Q23 -> 0.336
A26: 합계 | E26: =E24+K24+Q24 -> 6.06

Sheet 이적계수
B2: [해당자 :00분야책임 도환경] | C2: 이적계수 : 0.9(3개월이상 6개월미만)
B3: 구분 | C3: 개인점수 | D3: 기준 | E3: 용역 평가점수 | F3: 이적계수 감점
B4: 참여자능력평가
B5: (1) 자격및등급 | C5: 6 | D5: 4 | E5: =C5/D5 -> 1.5 | F5: =E5*0.1 -> 0.15
B6: (2) 경력 | C6: 6.3 | D6: 4 | E6: =C6/D6 -> 1.575 | F6: =E6*0.1 -> 0.1575
B7: (3) 실적 | C7: 7 | D7: 4 | E7: 1.75 | F7: =E7*0.1 -> 0.175
B8: (4) 업무여유도 | C8: 7 | D8: 4 | E8: 1.75 | F8: =E8*0.1 -> 0.175
B9: (5) 교육훈련 | C9: 1 | D9: 9 | E9: 0.1111111111 | F9: =E9*0.1 -> 0.01111111111
B10: (6) 과업이해도 | C10: 1 | E10: 비대상 | F10: 0
B11: 계 | F11: =-SUM(F5:F10) -> -0.6686111111
B12: * 당초 제출시 감점 적용 : -0.31

Sheet Sheet2 (hidden)
